bitfinex-derivatives/quotes_BTCF0:USTF0_20250429
["timestamp","ask_amount","ask_price","bid_price","bid_amount"]
[1745951906450,0.2618284,95419.0,95418.0,0.36741578]
[1745951906838,0.2618284,95419.0,95418.0,0.37041578]
[1745951907250,0.2095284,95419.0,95418.0,0.37041578]
[1745951907644,0.2095284,95419.0,95418.0,0.57994638]
[1745951907840,0.0523,95439.0,95418.0,0.78929578]
[1745951908146,0.0483,95449.0,95427.0,0.2094972]
[1745951908147,0.2095185,95428.0,95427.0,0.2094972]
[1745951908347,0.2095185,95428.0,95427.0,0.5702972]
[1745951908742,0.2618966,95428.0,95427.0,0.5702972]
[1745951909054,0.314275,95428.0,95427.0,0.5702972]
[1745951909252,0.314275,95428.0,95427.0,0.6932972]
[1745951909450,0.314275,95428.0,95427.0,0.6972972]
[1745951909653,0.314275,95428.0,95427.0,0.7970972]
[1745951909850,0.314275,95428.0,95427.0,0.7940972]
[1745951910040,0.314275,95428.0,95427.0,0.7970972]
[1745951910244,0.2618966,95428.0,95427.0,0.7970972]
[1745951913260,0.2618966,95428.0,95427.0,0.6770972]
[1745951915861,0.2095185,95428.0,95427.0,0.6770972]
[1745951919355,0.2595185,95428.0,95427.0,0.6770972]
[1745951919854,0.2095029,95431.0,95430.0,0.2095021]
[1745951920048,0.2095029,95431.0,95430.0,0.6212021]
[1745951921256,0.2095029,95431.0,95430.0,0.6242021]
[1745951921458,0.2618029,95431.0,95430.0,0.6242021]
[1745951922051,0.2618029,95431.0,95430.0,0.6262021]
[1745951925451,0.3105029,95431.0,95430.0,0.6262021]
[1745951926350,0.3105029,95431.0,95430.0,0.5753021]
[1745951926762,0.3105029,95431.0,95430.0,0.3658]
[1745951926964,0.4152909,95431.0,95430.0,0.005]
[1745951927266,0.3105029,95431.0,95430.0,0.005]
[1745951928169,0.2095087,95428.0,95427.0,0.3608]
[1745951929655,0.2095087,95428.0,95406.0,0.0015721]
[1745951929656,0.0523796,95424.0,95406.0,0.0015721]
[1745951929855,0.2095416,95413.0,95412.0,0.21879903]
[1745951930364,0.2095416,95413.0,95412.0,0.25579596]
[1745951930664,0.2095416,95413.0,95412.0,0.30729596]
[1745951930963,0.2611416,95413.0,95412.0,0.25979796]
[1745951931158,0.3128416,95413.0,95412.0,0.25979796]
[1745951931354,0.3128416,95413.0,95412.0,0.26279796]
[1745951931861,0.3128416,95413.0,95412.0,0.31359796]
[1745951932062,0.3128416,95413.0,95412.0,0.31059796]
[1745951932265,0.3128416,95413.0,95412.0,0.10305416]
[1745951933066,0.3128416,95413.0,95412.0,0.10205416]
[1745951933662,0.3128416,95413.0,95412.0,0.10005416]
[1745951933866,0.3128416,95413.0,95412.0,0.10205416]
[1745951934661,0.3128416,95413.0,95412.0,0.36309796]
[1745951936273,0.3128416,95413.0,95412.0,0.36109796]
[1745951936461,0.3128416,95413.0,95412.0,0.30859796]
[1745951936667,0.3128416,95413.0,95412.0,0.31059796]
[1745951937470,0.3128416,95413.0,95412.0,0.36459796]
[1745951937963,0.2611416,95413.0,95412.0,0.36359796]
[1745951939276,0.3113416,95413.0,95412.0,0.36359796]
[1745951939667,0.3113416,95413.0,95412.0,0.36159796]
[1745951939863,0.3113416,95413.0,95412.0,0.31159796]
[1745951940071,0.3113416,95413.0,95412.0,0.31359796]
[1745951940462,0.3113416,95413.0,95412.0,0.31259796]
[1745951940666,0.3113416,95413.0,95412.0,0.10305416]
[1745951941072,0.3113416,95413.0,95412.0,0.09905416]
[1745951941274,0.3113416,95413.0,95412.0,0.31059796]
[1745951942570,0.2095416,95413.0,95412.0,0.31059796]
[1745951942763,0.2095416,95413.0,95412.0,0.41369796]
[1745951943569,0.2095416,95413.0,95412.0,0.36309796]
[1745951944073,0.3116416,95413.0,95412.0,0.36309796]
[1745951947076,0.3116416,95413.0,95412.0,0.31059796]
[1745951948572,0.3116416,95413.0,95412.0,0.35909796]
[1745951949371,0.3116416,95413.0,95412.0,0.31059796]
[1745951950382,0.3116416,95413.0,95412.0,0.36099796]
[1745951950773,0.3116416,95413.0,95412.0,0.15145416]
[1745951951281,0.3116416,95413.0,95412.0,0.31059796]
[1745951955985,0.3116416,95413.0,95412.0,0.10105416]
[1745951958681,0.3116416,95413.0,95412.0,0.31059796]
[1745951960977,0.3116416,95413.0,95412.0,0.10105416]
[1745951961182,0.3116416,95413.0,95412.0,0.05025416]
[1745951963289,0.3116416,95413.0,95412.0,0.41105416]
[1745951963477,0.3116416,95413.0,95412.0,0.62059796]
[1745951963892,0.3116416,95413.0,95412.0,0.41105416]
[1745951964990,0.2095548,95407.0,95406.0,0.0015721]
[1745951965991,0.2095548,95407.0,95406.0,0.03375897]
[1745951966190,0.2095548,95407.0,95406.0,0.0045721]
[1745951966782,0.2095548,95407.0,95406.0,0.0065721]
[1745951967392,0.2095548,95407.0,95406.0,0.0085721]
[1745951968191,0.2095548,95407.0,95406.0,0.01649917]
[1745951968494,0.2095548,95407.0,95406.0,0.04795032]
[1745951968683,0.2095548,95407.0,95406.0,0.04295032]
[1745951968884,0.2095548,95407.0,95406.0,0.04395032]
[1745951969989,0.2095548,95407.0,95406.0,0.04195032]
[1745951970390,0.2095548,95407.0,95406.0,0.01049917]
[1745951972381,0.2095548,95407.0,95406.0,0.00949917]
[1745951973181,0.2095548,95407.0,95406.0,0.05799917]
[1745951973587,0.2105548,95407.0,95406.0,0.05799917]
[1745951974983,0.2095548,95407.0,95406.0,0.05799917]
[1745951975291,0.2105548,95407.0,95406.0,0.05799917]
[1745951976691,0.2105548,95407.0,95406.0,0.10629917]
[1745951980405,0.2105548,95407.0,95406.0,0.05799917]
[1745951983299,0.2105548,95407.0,95406.0,0.26755617]
[1745951983501,0.001,95407.0,95406.0,0.36465617]
[1745951983704,0.2105548,95407.0,95406.0,0.36465617]
[1745951983891,0.2105548,95407.0,95406.0,1.86465617]
[1745951985404,0.2105548,95407.0,95406.0,1.86765617]
[1745951985599,0.2095548,95407.0,95406.0,1.86765617]
[1745951985799,0.2095548,95407.0,95406.0,2.59125617]
[1745951990210,0.2095548,95407.0,95406.0,1.09125617]
[1745951992106,0.2095548,95407.0,95406.0,0.36965617]
[1745951992297,0.2095548,95407.0,95406.0,1.09125617]
[1745951998702,0.2095548,95407.0,95406.0,0.78459917]
[1745951999409,0.3029548,95407.0,95406.0,0.78459917]
[1745951999611,0.3029548,95407.0,95406.0,0.73609917]
[1745951999808,0.3029548,95407.0,95406.0,0.73409917]
[1745952000013,0.3029548,95407.0,95406.0,0.73609917]
[1745952000707,0.3029548,95407.0,95406.0,0.73409917]
[1745952001018,0.3029548,95407.0,95406.0,0.73509917]
[1745952001611,0.3029548,95407.0,95406.0,0.73409917]
[1745952002518,0.3029548,95407.0,95406.0,0.73109917]
[1745952002719,0.3029548,95407.0,95406.0,0.73209917]
[1745952004114,0.3029548,95407.0,95406.0,0.73109917]
[1745952004313,0.3029548,95407.0,95406.0,0.73209917]
[1745952004718,0.3029548,95407.0,95406.0,0.73109917]
[1745952005511,0.3029548,95407.0,95406.0,0.00949917]
[1745952005713,0.2095746,95398.0,95397.0,0.3608]
[1745952006220,0.2095746,95398.0,95397.0,0.39219365]
[1745952006406,0.2095746,95398.0,95397.0,0.40000649]
[1745952006612,0.3006746,95398.0,95397.0,0.40000649]
[1745952007007,0.3006746,95398.0,95397.0,0.40200649]
[1745952007522,0.3006746,95398.0,95397.0,0.40400649]
[1745952007716,0.3006746,95398.0,95397.0,0.40300649]
[1745952007918,0.3006746,95398.0,95397.0,0.40100649]
[1745952008112,0.3006746,95398.0,95397.0,0.40300649]
[1745952008510,0.3006746,95398.0,95397.0,0.40100649]
[1745952008717,0.3006746,95398.0,95397.0,0.40200649]
[1745952009112,0.3006746,95398.0,95397.0,0.40100649]
[1745952009308,0.3006746,95398.0,95397.0,0.61158329]
[1745952009508,0.2549746,95398.0,95397.0,0.62702757]
[1745952009715,0.2549746,95398.0,95397.0,0.67192658]
[1745952012517,0.13210772,95418.0,95397.0,0.46234978]
[1745952012714,0.2095636,95406.0,95405.0,0.261944]
[1745952012917,0.2619535,95406.0,95405.0,0.58579809]
[1745952013219,0.2619535,95406.0,95405.0,0.37624329]
[1745952013723,0.2619535,95406.0,95405.0,0.58581045]
[1745952014319,0.2619535,95406.0,95405.0,0.37625125]
[1745952014524,0.2619535,95406.0,95405.0,0.3608]
[1745952015015,0.2619535,95406.0,95405.0,0.3638]
[1745952015627,0.2629535,95406.0,95405.0,0.3638]
[1745952015816,0.2629535,95406.0,95405.0,0.4099]
[1745952016425,0.2619535,95406.0,95405.0,0.4119]
[1745952017215,0.2619535,95406.0,95405.0,0.4089]
[1745952017414,0.2619535,95406.0,95405.0,0.4109]
[1745952017623,0.2619535,95406.0,95405.0,0.6204592]
[1745952017825,0.2619535,95406.0,95405.0,0.4109]
[1745952018328,0.2619535,95406.0,95405.0,0.4089]
[1745952018518,0.2619535,95406.0,95405.0,0.4099]
[1745952019023,0.2619535,95406.0,95405.0,0.26465258]
[1745952020420,0.2619535,95406.0,95405.0,0.26165258]
[1745952020623,0.2619535,95406.0,95405.0,0.26465258]
[1745952020827,0.2619535,95406.0,95405.0,0.4099]
[1745952021016,0.2619535,95406.0,95405.0,0.4089]
[1745952021218,0.2619535,95406.0,95405.0,0.6184592]
[1745952022425,0.2619535,95406.0,95405.0,0.63391624]
[1745952022727,0.2619535,95406.0,95405.0,0.63291624]
[1745952024521,0.2619535,95406.0,95405.0,0.42335704]
[1745952025830,0.2619535,95406.0,95405.0,0.63291624]
[1745952028518,0.2619535,95406.0,95405.0,0.42335704]
[1745952028723,0.2619535,95406.0,95405.0,0.63291624]
[1745952028921,0.2619535,95406.0,95405.0,0.63298376]
[1745952029331,0.2619535,95406.0,95405.0,0.63298427]
[1745952029631,0.2619535,95406.0,95405.0,0.6174592]
[1745952030033,0.2619535,95406.0,95405.0,0.6330132]
[1745952032733,0.2619535,95406.0,95405.0,0.423454]
[1745952032928,0.3537535,95406.0,95405.0,0.423454]
[1745952033230,0.3537535,95406.0,95405.0,0.377354]
[1745952033418,0.3537535,95406.0,95405.0,1e-07]
[1745952033618,0.3537535,95406.0,95397.0,0.03920649]
[1745952033619,0.7085695,95406.0,95397.0,0.00781284]
[1745952033832,0.2095812,95395.0,95394.0,0.15944524]
[1745952034227,0.3144092,95395.0,95394.0,0.15944524]
[1745952034618,0.4053092,95395.0,95394.0,0.15944524]
[1745952035126,0.0523996,95387.0,95377.0,0.0015727]
[1745952035336,0.2096119,95381.0,95380.0,0.00769728]
[1745952035533,0.2096185,95378.0,95377.0,0.16876372]
[1745952036033,0.31446651,95378.0,95377.0,0.16876372]
[1745952037123,0.31446651,95378.0,95377.0,0.17376372]
[1745952037527,0.2096185,95378.0,95377.0,0.5425835]
[1745952038126,0.2096185,95378.0,95377.0,0.5874835]
[1745952038329,0.2096185,95378.0,95377.0,0.5924835]
[1745952039836,0.2096185,95378.0,95377.0,0.42529248]
[1745952040240,0.2096185,95378.0,95377.0,0.63491318]
[1745952040534,0.0523992,95388.0,95377.0,0.42529248]
[1745952040735,0.2096024,95390.0,95389.0,0.20959]
[1745952040951,0.2095943,95389.0,95388.0,0.0943]
[1745952041737,0.2095943,95389.0,95388.0,0.3038965]
[1745952041940,0.2580943,95389.0,95388.0,0.3038965]
[1745952042640,0.2580943,95389.0,95388.0,0.3058965]
[1745952043237,0.2095943,95389.0,95388.0,0.3088965]
[1745952047541,0.2095943,95389.0,95388.0,0.3068965]
[1745952047843,0.2095943,95389.0,95388.0,0.3088965]
[1745952048245,0.2095943,95389.0,95388.0,0.3068965]
[1745952048450,0.2095943,95389.0,95388.0,0.3088965]
[1745952049534,0.2095943,95389.0,95388.0,0.3058965]
[1745952049738,0.2095943,95389.0,95388.0,0.3078965]
[1745952050651,0.2095943,95389.0,95388.0,0.3058965]
[1745952050838,0.2095943,95389.0,95388.0,0.3078965]
[1745952051037,0.2095943,95389.0,95388.0,0.3088965]
[1745952052451,0.2095943,95389.0,95388.0,0.3098965]
[1745952052939,0.2095943,95389.0,95388.0,0.3088965]
[1745952053339,0.2095943,95389.0,95388.0,0.3058965]
[1745952053545,0.2095943,95389.0,95388.0,0.3088965]
[1745952054150,0.2095943,95389.0,95388.0,0.3098965]
[1745952054843,0.2095943,95389.0,95388.0,0.3088965]
[1745952056550,0.2095943,95389.0,95388.0,0.3058965]
[1745952056750,0.2095943,95389.0,95388.0,0.3078965]
[1745952057651,0.2095943,95389.0,95388.0,0.3058965]
[1745952057852,0.2095943,95389.0,95388.0,0.6686965]
[1745952059747,0.2095943,95389.0,95388.0,0.6666965]
[1745952059953,0.2095943,95389.0,95388.0,0.6686965]
[1745952060250,0.2095943,95389.0,95388.0,0.6666965]
[1745952060453,0.2095943,95389.0,95388.0,0.4591]
[1745952060753,0.2095943,95389.0,95388.0,0.6686965]
[1745952061347,0.2539943,95389.0,95388.0,0.6686965]
[1745952061653,0.2991943,95389.0,95388.0,0.6676965]
[1745952062454,0.2991943,95389.0,95388.0,0.3068965]
[1745952062646,0.2991943,95389.0,95388.0,0.6676965]
[1745952063243,0.2991943,95389.0,95388.0,0.6656965]
[1745952063442,0.2991943,95389.0,95388.0,0.6676965]
[1745952063947,0.2539943,95389.0,95388.0,0.6676965]
[1745952064154,0.2095943,95389.0,95388.0,0.6676965]
[1745952065447,0.3459943,95389.0,95388.0,0.6202965]
[1745952065954,0.3459943,95389.0,95388.0,0.4107]
[1745952066457,0.3459943,95389.0,95388.0,0.0499]
[1745952066652,0.3459943,95389.0,95388.0,0.4107]
[1745952067459,0.3459943,95389.0,95388.0,0.4097]
[1745952067756,0.3459943,95389.0,95388.0,0.4107]
[1745952067958,0.3459943,95389.0,95388.0,0.4117]
[1745952068658,0.3459943,95389.0,95388.0,0.3648]
[1745952069459,0.3459943,95389.0,95388.0,0.3638]
[1745952069959,0.3459943,95389.0,95388.0,0.3628]
[1745952070461,0.3459943,95389.0,95388.0,0.3618]
[1745952070665,0.3459943,95389.0,95388.0,0.3628]
[1745952073162,0.3459943,95389.0,95388.0,0.002]
[1745952073364,0.3459943,95389.0,95388.0,0.3628]
[1745952074753,0.3459943,95389.0,95388.0,0.5723965]
[1745952075165,0.3025943,95389.0,95388.0,0.5723965]
[1745952076564,0.2095924,95390.0,95389.0,0.2095943]
[1745952076758,0.2095924,95390.0,95389.0,0.3013943]
[1745952077761,0.2095924,95390.0,95389.0,0.3033943]
[1745952079556,0.2556924,95390.0,95389.0,0.3033943]
[1745952082066,0.2556924,95390.0,95389.0,0.0938]
[1745952082461,0.2556924,95390.0,95389.0,0.3033943]
[1745952084371,0.2556924,95390.0,95389.0,1.8033943]
[1745952084966,0.2556924,95390.0,95389.0,1.5938]
[1745952087565,0.2556924,95390.0,95389.0,1.8033943]
[1745952088376,0.2556924,95390.0,95389.0,1.5938]
[1745952088675,0.2556924,95390.0,95389.0,1.8033943]
[1745952089066,0.3009924,95390.0,95389.0,1.8033943]
[1745952089577,0.3009924,95390.0,95389.0,1.5938]
[1745952089767,0.3009924,95390.0,95389.0,1.502]
[1745952092363,0.3009924,95390.0,95389.0,0.002]
[1745952093266,0.3009924,95390.0,95389.0,0.0448]
[1745952093563,0.3009924,95390.0,95382.0,0.0524023]
[1745952093564,0.2096185,95378.0,95365.0,0.3608]
[1745952094169,0.2096185,95378.0,95367.0,0.2096421]
[1745952094571,0.2958185,95378.0,95377.0,0.37339248]
[1745952095162,0.2958185,95378.0,95377.0,0.37639248]
[1745952099574,0.2096229,95376.0,95366.0,0.21316717]
[1745952099763,0.2096229,95376.0,95367.0,0.0439]
[1745952099968,0.31447091,95376.0,95367.0,0.0439]
[1745952100163,0.2096229,95376.0,95370.0,0.02417223]
[1745952100478,0.2096229,95376.0,95371.0,0.0439]
[1745952101371,0.2096229,95376.0,95375.0,0.00404849]
[1745952101675,0.2096229,95376.0,95375.0,0.00604849]
[1745952101869,0.2096229,95376.0,95375.0,0.01410024]
[1745952115088,0.2116229,95376.0,95375.0,0.01110024]
[1745952115386,0.2136229,95376.0,95375.0,0.00910024]
[1745952115785,0.2116229,95376.0,95375.0,0.00910024]
[1745952115991,0.2146229,95376.0,95375.0,0.00910024]
[1745952116578,0.2116229,95376.0,95375.0,0.00910024]
[1745952116782,0.2146229,95376.0,95375.0,0.00910024]
[1745952117883,0.2126229,95376.0,95375.0,0.00910024]
[1745952118277,0.2126229,95376.0,95375.0,4e-08]
[1745952118278,0.32047091,95376.0,95375.0,4e-08]
[1745952118583,0.32047091,95376.0,95357.0,0.0423]
[1745952118584,0.2096889,95346.0,95343.0,0.3608]
[1745952118786,0.2096889,95346.0,95345.0,0.00902061]
[1745952119086,0.2096889,95346.0,95345.0,0.00104882]
[1745952119587,0.5704889,95346.0,95345.0,0.00104882]
[1745952119888,0.6116889,95346.0,95345.0,0.00404882]
[1745952120088,0.6538889,95346.0,95345.0,2e-08]
[1745952120387,0.2096955,95343.0,95342.0,5e-08]
[1745952120787,0.3145795,95343.0,95342.0,5e-08]
[1745952121477,0.2097175,95333.0,95332.0,0.0442]
[1745952121679,0.2097175,95333.0,95332.0,0.05209394]
[1745952122082,0.2954175,95333.0,95332.0,0.05209394]
[1745952122679,0.2954175,95333.0,95332.0,0.00789394]
[1745952122882,0.2097219,95331.0,95330.0,0.26511578]
[1745952124183,0.3146219,95331.0,95330.0,0.26911578]
[1745952124582,0.3146219,95331.0,95330.0,0.27713239]
[1745952124777,0.3146219,95331.0,95330.0,0.27913239]
[1745952125185,0.2097219,95331.0,95330.0,0.27913239]
[1745952126985,0.2097219,95331.0,95330.0,0.01401661]
[1745952127391,0.2097219,95331.0,95330.0,0.37481661]
[1745952127887,0.2097219,95331.0,95330.0,0.58454071]
[1745952129286,0.2097219,95331.0,95330.0,0.66674071]
[1745952130091,0.2097219,95331.0,95330.0,0.78674071]
[1745952132897,0.2097219,95331.0,95330.0,0.57701661]
[1745952133388,0.2097219,95331.0,95330.0,0.78674071]
[1745952133792,0.2097096,95342.0,95341.0,0.3145353]
[1745952134090,0.2097096,95342.0,95341.0,0.6229115]
[1745952134890,0.2097096,95342.0,95341.0,0.5704882]
[1745952135085,0.2097096,95342.0,95341.0,0.5724882]
[1745952138387,0.2097096,95342.0,95341.0,0.3628]
[1745952138993,0.2097096,95342.0,95341.0,0.4446]
[1745952144686,0.2097096,95342.0,95341.0,0.3628]
[1745952145106,0.2097096,95342.0,95341.0,0.002]
[1745952145284,0.6549096,95342.0,95341.0,0.002]
[1745952145595,0.2097219,95331.0,95324.0,0.0851]
[1745952146391,0.2897219,95331.0,95324.0,0.0851]
[1745952146691,0.3325219,95331.0,95330.0,0.37081661]
[1745952147396,0.052429,95334.0,95330.0,0.37081661]
[1745952147397,0.0524196,95351.0,95340.0,0.0524249]
[1745952147596,0.2096933,95344.0,95343.0,0.3608]
[1745952147793,0.2096933,95344.0,95343.0,0.4038]
[1745952148806,0.2096933,95344.0,95343.0,0.4048]
[1745952149303,0.2500933,95344.0,95343.0,0.4048]
[1745952150213,0.2500933,95344.0,95343.0,0.3618]
[1745952157606,0.0524196,95351.0,95343.0,0.3618]
[1745952157800,0.2096793,95351.0,95350.0,0.2096801]
[1745952158000,0.2096712,95357.0,95356.0,0.2096647]
[1745952158209,0.2096712,95357.0,95356.0,0.5704647]
[1745952158695,0.2096712,95357.0,95356.0,0.6519647]
[1745952159200,0.2096712,95357.0,95356.0,0.7719647]
[1745952159401,0.2106712,95357.0,95356.0,0.5623]
[1745952159697,0.2106712,95357.0,95356.0,0.79357107]
[1745952159899,0.2106712,95357.0,95356.0,0.58390417]
[1745952160106,0.2914712,95357.0,95356.0,0.67357107]
[1745952160709,0.2904712,95357.0,95356.0,0.67357107]
[1745952160905,0.2904712,95357.0,95356.0,0.67457107]
[1745952161310,0.2904712,95357.0,95356.0,0.67357107]
[1745952161512,0.2904712,95357.0,95356.0,0.67457107]
[1745952162204,0.2904712,95357.0,95356.0,0.46490417]
[1745952162411,0.2914712,95357.0,95356.0,0.46490417]
[1745952162910,0.2904712,95357.0,95356.0,0.46490417]
[1745952163112,0.2914712,95357.0,95356.0,0.46490417]
[1745952163812,0.2914712,95357.0,95356.0,0.46390417]
[1745952165709,0.2914712,95357.0,95356.0,0.67357107]
[1745952166012,0.2914712,95357.0,95356.0,0.46390417]
[1745952166310,0.2924712,95357.0,95356.0,0.46390417]
[1745952167604,0.2904712,95357.0,95356.0,0.46390417]
[1745952167808,0.2914712,95357.0,95356.0,0.46390417]
[1745952168013,0.2914712,95357.0,95356.0,0.67357107]
[1745952168413,0.2914712,95357.0,95356.0,0.46390417]
[1745952169119,0.2904712,95357.0,95356.0,0.46390417]
[1745952169415,0.2914712,95357.0,95356.0,0.67357107]
[1745952169717,0.2914712,95357.0,95356.0,0.46390417]
[1745952170314,0.2914712,95357.0,95356.0,0.67357107]
[1745952170613,0.2904712,95357.0,95356.0,0.67357107]
[1745952170818,0.2914712,95357.0,95356.0,0.67357107]
[1745952171117,0.2914712,95357.0,95356.0,0.46490417]
[1745952171316,0.2914712,95357.0,95356.0,0.67457107]
[1745952171817,0.2914712,95357.0,95356.0,0.46390417]
[1745952172217,0.2914712,95357.0,95356.0,0.42530417]
[1745952172717,0.2914712,95357.0,95356.0,0.42430417]
[1745952174211,0.2914712,95357.0,95356.0,0.63397107]
[1745952174415,0.2914712,95357.0,95356.0,0.42430417]
[1745952174719,0.2914712,95357.0,95356.0,0.63397107]
[1745952174918,0.2924712,95357.0,95356.0,0.63397107]
[1745952175511,0.2525712,95357.0,95356.0,0.63397107]
[1745952177816,0.2525712,95357.0,95356.0,0.42430417]
[1745952178019,0.2525712,95357.0,95356.0,0.63397107]
[1745952180620,0.2525712,95357.0,95356.0,0.42430417]
[1745952182115,0.2940712,95357.0,95356.0,0.42430417]
[1745952182320,0.2940712,95357.0,95356.0,0.63397107]
[1745952183717,0.2940712,95357.0,95356.0,0.42430417]
[1745952184823,0.2940712,95357.0,95356.0,0.63397107]
[1745952189013,0.0524104,95368.0,95356.0,0.46540417]
[1745952189220,0.3144877,95364.0,95363.0,0.2096493]
[1745952189421,0.3669021,95364.0,95363.0,0.5704493]
[1745952189916,0.3669021,95364.0,95363.0,0.4415]
[1745952190118,0.4057021,95364.0,95363.0,0.6511515]
[1745952190514,0.4067021,95364.0,95363.0,0.6511515]
[1745952191924,0.4067021,95364.0,95363.0,0.4415]
[1745952192621,0.4087021,95364.0,95363.0,0.4415]
[1745952193717,0.4087021,95364.0,95363.0,0.6511515]
[1745952194026,0.4087021,95364.0,95363.0,0.4415]
[1745952196126,0.4087021,95364.0,95363.0,0.3608]
[1745952201729,0.2096625,95358.0,95357.0,0.16011246]
[1745952202122,0.2096625,95358.0,95357.0,0.20091246]
[1745952202929,0.2106625,95358.0,95357.0,0.20091246]
[1745952203126,0.2106625,95358.0,95357.0,0.41057716]
[1745952203326,0.2106625,95358.0,95357.0,0.44947716]
[1745952203527,0.2106625,95358.0,95357.0,0.48897716]
[1745952203731,0.2106625,95358.0,95357.0,0.20091246]
[1745952204032,0.2938625,95358.0,95357.0,0.0408]
[1745952208333,0.2938625,95358.0,95357.0,0.20090315]
[1745952211641,0.2938625,95358.0,95357.0,0.0408]
[1745952214239,0.2532625,95358.0,95357.0,0.0408]
[1745952214536,0.2532625,95358.0,95357.0,0.2913647]
[1745952214933,0.2106625,95358.0,95357.0,0.2913647]
[1745952217930,0.2502625,95358.0,95357.0,0.2913647]
[1745952219433,0.2502625,95358.0,95357.0,0.45146785]
[1745952221136,0.2106625,95358.0,95357.0,0.45146785]
[1745952221332,0.001,95358.0,95357.0,0.45146785]
[1745952221938,0.2096517,95365.0,95364.0,0.2096471]
[1745952222140,0.2096517,95365.0,95364.0,0.5704471]
[1745952222443,0.2495517,95365.0,95364.0,0.3608]
[1745952222835,0.2495517,95365.0,95364.0,0.5704471]
[1745952223231,0.2525517,95365.0,95364.0,0.5704471]
[1745952224031,0.2505517,95365.0,95364.0,0.5704471]
[1745952225539,0.2505517,95365.0,95364.0,0.39250785]
[1745952228045,0.2505517,95365.0,95364.0,0.38643775]
[1745952229946,0.2505517,95365.0,95364.0,0.5704471]
[1745952233750,0.2505517,95365.0,95364.0,0.6125471]
[1745952233945,0.2901517,95365.0,95364.0,0.6125471]
[1745952234146,0.2891517,95365.0,95364.0,0.6145471]
[1745952234350,0.2495517,95365.0,95364.0,0.6165471]
[1745952235447,0.0523974,95392.0,95364.0,0.4069]
[1745952235652,0.2620458,95373.0,95372.0,0.2096295]
[1745952235838,0.0416,95385.0,95381.0,0.0524027]
[1745952236038,0.3618,95406.0,95391.0,0.0523969]
[1745952236245,0.0415,95395.0,95394.0,0.5703834]
[1745952236439,0.0015,95395.0,95394.0,0.5703834]
[1745952237139,0.0065,95395.0,95394.0,0.6903834]
[1745952237344,0.0065,95395.0,95394.0,0.7096271]
[1745952237646,0.2170812,95395.0,95394.0,0.7096271]
[1745952238549,0.0035,95395.0,95394.0,0.7510271]
[1745952238740,0.2130812,95395.0,95394.0,0.7510271]
[1745952238939,0.2130812,95395.0,95394.0,0.75891098]
[1745952239137,0.2130812,95395.0,95394.0,0.63891098]
[1745952240451,0.0035,95395.0,95394.0,0.63891098]
[1745952240652,0.0396,95401.0,95394.0,0.63891098]
[1745952240653,0.2629535,95406.0,95405.0,0.2095592]
[1745952240844,0.3021535,95406.0,95405.0,0.5703592]
[1745952241044,0.3021535,95406.0,95405.0,0.3608]
[1745952242156,0.3442535,95406.0,95405.0,0.3608]
[1745952242548,0.3462535,95406.0,95405.0,0.3608]
[1745952242755,0.3432535,95406.0,95405.0,0.3608]
[1745952242947,0.3452535,95406.0,95405.0,0.3608]
[1745952246661,0.2928638,95406.0,95405.0,0.5703592]
[1745952246866,0.0426,95413.0,95412.0,0.2095438]
[1745952247155,0.2619307,95416.0,95415.0,0.2095328]
[1745952247655,0.314316,95416.0,95415.0,0.2095328]
[1745952248261,0.2095372,95415.0,95414.0,0.0406]
[1745952248562,0.2902372,95415.0,95414.0,0.0406]
[1745952249555,0.2902372,95415.0,95414.0,0.2501394]
[1745952249759,0.2972372,95415.0,95414.0,0.2501394]
[1745952250560,0.2972372,95415.0,95414.0,0.0406]
[1745952251463,0.2972372,95415.0,95414.0,0.2501394]
[1745952252664,0.2972372,95415.0,95414.0,0.0406]
[1745952257257,0.2095394,95414.0,95413.0,0.3608]
[1745952257462,0.209557,95406.0,95405.0,0.3608]
[1745952257662,0.209557,95406.0,95405.0,0.4003]
[1745952258063,0.209557,95406.0,95405.0,0.6098592]
[1745952258576,0.004,95414.0,95413.0,0.2095416]
[1745952258766,0.2095372,95416.0,95415.0,0.2095328]
[1745952258968,0.2095372,95416.0,95415.0,0.2902328]
[1745952259367,0.2504372,95416.0,95415.0,0.2902328]
[1745952259865,0.2534372,95416.0,95415.0,0.2902328]
[1745952261165,0.2961372,95416.0,95415.0,0.2902328]
[1745952261363,0.2991372,95416.0,95415.0,0.2902328]
[1745952263059,0.2991372,95416.0,95415.0,0.0807]
[1745952264462,0.2991372,95416.0,95415.0,0.2902372]
[1745952273477,0.2564372,95416.0,95415.0,0.2902372]
[1745952274774,0.2990372,95416.0,95415.0,0.2902372]
[1745952280092,0.2564372,95416.0,95415.0,0.2902372]
[1745952282288,0.2969372,95416.0,95415.0,0.2902372]
[1745952283482,0.07972482,95438.0,95415.0,0.0807]
[1745952283687,0.13209682,95438.0,95427.0,0.3608]
[1745952283990,0.2110087,95430.0,95429.0,0.5703065]
[1745952284183,0.2110087,95430.0,95429.0,0.6119065]
[1745952284685,0.2110087,95430.0,95429.0,0.6524065]
[1745952284887,0.0015,95430.0,95429.0,0.7160465]
[1745952285082,0.0523747,95433.0,95431.0,0.0523753]
[1745952285286,0.2618746,95433.0,95432.0,0.3439699]
[1745952286090,0.2618746,95433.0,95432.0,0.36123151]
[1745952286485,0.2628746,95433.0,95432.0,0.36123151]
[1745952290492,0.2628746,95433.0,95432.0,0.30885711]
[1745952294398,0.001,95433.0,95432.0,0.30885711]
[1745952294692,0.2094851,95439.0,95438.0,0.2094867]
[1745952294892,0.2094851,95439.0,95438.0,0.5702867]
[1745952295293,0.2094851,95439.0,95438.0,0.6092867]
[1745952295493,0.2094851,95439.0,95438.0,0.6503867]
[1745952295797,0.2104851,95439.0,95438.0,0.6503867]
[1745952296104,0.2114851,95439.0,95438.0,0.6503867]
[1745952297294,0.3142023,95448.0,95447.0,0.209467]
[1745952297591,0.3142023,95448.0,95447.0,0.633867]
[1745952300185,0.3142023,95448.0,95447.0,0.4244]
[1745952300991,0.3142023,95448.0,95447.0,0.47176489]
[1745952301795,0.3142023,95448.0,95447.0,0.68123189]
[1745952302401,0.3142023,95448.0,95447.0,0.47176489]
[1745952302902,0.3142023,95448.0,95447.0,0.68123189]
[1745952303103,0.3142023,95448.0,95447.0,0.04736489]
[1745952303398,0.3142023,95448.0,95447.0,0.00786489]
[1745952303605,0.209467,95447.0,95446.0,0.0636]
[1745952303790,0.291167,95447.0,95446.0,0.0636]
[1745952308309,0.291167,95447.0,95446.0,0.07161819]
[1745952310200,0.291167,95447.0,95446.0,0.43241819]
[1745952315202,0.291167,95447.0,95446.0,0.41141819]
[1745952315507,0.249567,95447.0,95446.0,0.47501819]
[1745952316604,0.291167,95447.0,95446.0,0.47501819]
[1745952319309,0.291167,95447.0,95446.0,0.00801819]
[1745952319613,0.2094802,95441.0,95440.0,0.41187681]
[1745952319808,0.2094802,95441.0,95440.0,0.47547681]
[1745952320205,0.0401,95447.0,95445.0,0.2094692]
[1745952320410,0.0401,95447.0,95446.0,0.6109692]